bitfinex/quotes_SOLUSD_20250701
["timestamp","ask_amount","ask_price","bid_price","bid_amount"]
[1751366331373,6.70522273,149.14,149.13,4.54237475]
[1751366331568,0.1,149.15,149.13,4.54237475]
[1751366331791,0.1,149.15,149.14,4.54237475]
[1751366334300,6.80465973,149.15,149.12,1.5497]
[1751366334786,6.80465973,149.15,149.09,33.71174762]
[1751366334787,4.54237475,149.13,149.09,0.2]
[1751366334972,27.36,149.12,149.09,4.74237475]
[1751366335361,27.36,149.12,149.09,0.2]
[1751366335665,23.56630907,149.15,149.11,4.54237475]
[1751366335867,27.36,149.14,149.12,4.54237475]
[1751366337171,27.36,149.14,149.09,0.2]
[1751366337374,27.36,149.14,149.11,4.54237475]
[1751366338188,6.7055589,149.13,149.1,4.54237475]
[1751366338361,6.7055589,149.13,149.09,4.74237475]
[1751366338561,6.7055589,149.13,149.11,4.54237475]
[1751366338786,6.7055589,149.13,149.12,4.54237475]
[1751366340775,6.7055589,149.13,149.09,0.2]
[1751366340988,6.7055589,149.13,149.1,4.54237475]
[1751366341188,6.7055589,149.13,149.11,4.54237475]
[1751366341696,26.0,149.1,149.09,0.2]
[1751366341903,54.72216157,149.1,149.09,0.2]
[1751366342597,54.58,149.1,149.09,0.2]
[1751366342991,54.58,149.1,149.09,4.74237475]
[1751366343168,54.58,149.1,149.09,0.2]
[1751366343498,54.58,149.1,149.09,4.74237475]
[1751366343879,0.14216157,149.14,149.09,4.74237475]
[1751366343880,28.62,149.12,149.09,4.74237475]
[1751366344084,26.0,149.1,149.09,0.2]
[1751366345086,26.0,149.1,149.09,4.74237475]
[1751366345705,61.32637461,149.12,149.09,4.74237475]
[1751366345908,61.32637461,149.12,149.11,4.54237475]
[1751366346079,26.0,149.12,149.11,4.54237475]
[1751366347976,0.1,149.15,149.11,4.54237475]
[1751366348293,0.1,149.15,149.14,4.54237475]
[1751366353799,0.1,149.15,149.14,23.19202361]
[1751366355110,0.1,149.15,149.14,4.54237475]
[1751366365709,0.1,149.15,149.14,23.19202361]
[1751366367799,0.1,149.15,149.14,18.64964886]
[1751366368010,0.1,149.15,149.14,23.19202361]
[1751366370222,0.1,149.15,149.14,4.54237475]
[1751366374421,0.1,149.21,149.15,18.64964886]
[1751366374620,0.1,149.21,149.2,4.54237475]
[1751366375625,6.80225651,149.21,149.2,4.54237475]
[1751366375829,0.1,149.21,149.2,4.54237475]
[1751366378813,0.1,149.21,149.16,18.64964886]
[1751366379006,0.1,149.21,149.14,59.05302176]
[1751366379007,0.1,149.21,149.19,4.54237475]
[1751366380006,0.1,149.21,149.2,4.54237475]
[1751366380332,6.80196367,149.21,149.2,4.54237475]
[1751366381412,6.80196367,149.21,149.19,4.54237475]
[1751366382028,0.1,149.21,149.2,4.54237475]
[1751366383506,6.80196367,149.21,149.2,4.54237475]
[1751366383707,0.1,149.21,149.2,4.54237475]
[1751366385137,6.80196367,149.21,149.19,4.54237475]
[1751366385336,6.80196367,149.21,149.14,44.64964886]
[1751366385337,6.80196367,149.21,149.15,18.64964886]
[1751366385502,6.80196367,149.21,149.19,4.54237475]
[1751366386739,0.1,149.21,149.14,44.64964886]
[1751366387038,6.80200322,149.21,149.18,4.54237475]
[1751366390034,6.80200322,149.21,149.19,4.54237475]
[1751366391743,6.80200322,149.21,149.17,4.54237475]
[1751366391959,6.80200322,149.21,149.18,4.54237475]
[1751366392251,6.80203172,149.21,149.19,4.54237475]
[1751366393216,6.80203172,149.21,149.14,18.64964886]
[1751366393217,0.1,149.21,149.2,4.54237475]
[1751366395115,0.1,149.21,149.19,4.54237475]
[1751366396255,0.1,149.21,149.2,4.54237475]
[1751366400549,0.1,149.21,149.18,18.64964886]
[1751366400718,0.1,149.21,149.2,4.54237475]
[1751366403827,0.1,149.21,149.2,23.19202361]
[1751366405426,0.1,149.27,149.21,18.64964886]
[1751366405626,0.1,149.27,149.25,4.54237475]
[1751366405852,6.79929763,149.27,149.24,4.54237475]
[1751366409873,4.54237475,149.26,149.18,34.0261]
[1751366410040,26.0,149.24,149.21,4.54237475]
[1751366413083,32.70071527,149.24,149.21,4.54237475]
[1751366413458,0.2,149.25,149.23,4.54237475]
[1751366413756,0.2,149.25,149.24,4.54237475]
[1751366413954,6.79931692,149.27,149.24,4.54237475]
[1751366413955,0.1,149.27,149.24,4.54237475]
[1751366414177,0.1,149.27,149.25,4.54237475]
[1751366414664,0.1,149.27,149.26,4.54237475]
[1751366415369,26.1,149.27,149.26,4.54237475]
[1751366415558,0.1,149.27,149.26,4.54237475]
[1751366415967,0.1,149.27,149.25,4.54237475]
[1751366416164,6.7993162,149.27,149.25,4.54237475]
[1751366419770,0.1,149.27,149.25,4.54237475]
[1751366419984,0.1,149.27,149.26,4.54237475]
[1751366423571,0.1,149.27,149.24,18.64964886]
[1751366423786,0.1,149.27,149.26,4.54237475]
[1751366426187,37.34168103,149.27,149.22,4.54237475]
[1751366426497,37.34168103,149.27,149.23,4.54237475]
[1751366426681,32.79930628,149.27,149.23,4.54237475]
[1751366427085,37.34168103,149.27,149.22,4.54237475]
[1751366427381,49.54748072,149.27,149.22,4.54237475]
[1751366427594,4.54237475,149.26,149.19,7.6184]
[1751366427782,4.54237475,149.26,149.22,4.54237475]
[1751366428171,6.7001675,149.25,149.22,4.54237475]
[1751366431481,11.24209336,149.26,149.19,7.6184]
[1751366431688,11.44209336,149.26,149.22,4.54237475]
[1751366433082,6.89971861,149.26,149.22,4.54237475]
[1751366433285,28.19138988,149.26,149.21,0.2]
[1751366433484,28.19138988,149.26,149.21,4.74237475]
[1751366433905,28.19138988,149.26,149.22,4.54237475]
[1751366434716,4.54237475,149.24,149.21,0.2]
[1751366434889,27.99138988,149.26,149.21,4.74237475]
[1751366435092,6.69971861,149.26,149.22,4.54237475]
[1751366435698,6.69971861,149.26,149.23,4.54237475]
[1751366438011,6.69971861,149.26,149.24,4.54237475]
[1751366438309,6.69971861,149.26,149.23,4.54237475]
[1751366440105,6.69971861,149.26,149.21,0.2]
[1751366440106,6.69971861,149.26,149.22,4.54237475]
[1751366440815,6.69971861,149.26,149.23,4.54237475]
[1751366441685,37.34185353,149.27,149.23,4.54237475]
[1751366441913,32.79947878,149.27,149.24,4.54237475]
[1751366442112,32.79947878,149.27,149.25,4.54237475]
[1751366442414,32.99947878,149.27,149.25,4.54237475]
[1751366442910,32.99947878,149.27,149.26,4.54237475]
[1751366442911,0.3,149.27,149.26,4.54237475]
[1751366443121,6.99926977,149.27,149.26,4.54237475]
[1751366445216,6.99926977,149.27,149.25,4.54237475]
[1751366446701,6.99926977,149.27,149.26,4.54237475]
[1751366447217,0.1,149.27,149.26,4.54237475]
[1751366449627,0.1,149.27,149.25,1.506]
[1751366449799,0.1,149.27,149.26,4.54237475]
[1751366454936,0.1,149.27,149.22,1.5654]
[1751366455128,0.1,149.27,149.26,4.54237475]
[1751366457032,0.1,149.27,149.22,1.5654]
[1751366457218,0.1,149.27,149.26,4.54237475]
[1751366479062,0.1,149.27,149.22,34.94127306]
[1751366479266,0.1,149.27,149.26,4.54237475]
[1751366495778,0.1,149.27,149.26,2.90005326]
[1751366503480,0.1,149.27,149.23,18.64964886]
[1751366503671,0.1,149.27,149.26,2.90005326]
[1751366503858,6.99926977,149.27,149.25,2.90005326]
[1751366504685,6.99926977,149.27,149.21,18.84964886]
[1751366504686,0.2,149.26,149.21,18.84964886]
[1751366504867,6.8998528,149.26,149.24,2.90005326]
[1751366505061,0.2,149.25,149.23,2.90005326]
[1751366506474,0.2,149.25,149.21,0.2]
[1751366506683,0.2,149.24,149.23,2.90005326]
[1751366508175,0.2,149.23,149.22,2.90005326]
[1751366512977,6.90108873,149.23,149.21,3.10005326]
[1751366513186,6.90108873,149.23,149.21,0.2]
[1751366514490,6.90108873,149.23,149.21,3.10005326]
[1751366514692,6.90108873,149.23,149.21,0.2]
[1751366516164,6.90108873,149.23,149.21,4.7362847]
[1751366517877,6.90108873,149.23,149.21,0.2]
[1751366518185,6.90108873,149.23,149.21,4.7362847]
[1751366518692,0.2,149.22,149.21,4.7362847]
[1751366518877,6.70108873,149.23,149.21,4.7362847]
[1751366519896,6.70061645,149.24,149.21,0.2]
[1751366520072,11.23690115,149.24,149.21,0.2]
[1751366521580,6.70061645,149.24,149.21,0.2]
[1751366521892,11.23690115,149.24,149.21,0.2]
[1751366522091,6.70061645,149.24,149.21,4.7362847]
[1751366523389,11.23690115,149.24,149.21,0.2]
[1751366523991,38.73690115,149.24,149.21,0.2]
[1751366524179,30.5362847,149.22,149.21,0.2]
[1751366524896,26.0,149.22,149.21,0.2]
[1751366525196,30.5362847,149.22,149.21,0.2]
[1751366526135,37.23779924,149.22,149.21,0.2]
[1751366527192,54.13374716,149.22,149.16,4.5362847]
[1751366527370,4.7362847,149.2,149.16,4.5362847]
[1751366527570,32.2362847,149.2,149.16,4.5362847]
[1751366528208,6.70286212,149.19,149.16,4.5362847]
[1751366529105,6.70286212,149.19,149.17,4.5362847]
[1751366529806,27.5,149.2,149.18,4.5362847]
[1751366530011,34.20250818,149.2,149.18,4.5362847]
[1751366530905,27.5,149.2,149.19,4.5362847]
[1751366531102,6.70217456,149.21,149.19,4.5362847]
[1751366531302,6.70217456,149.21,149.2,4.5362847]
[1751366532608,11.23845926,149.21,149.17,4.5362847]
[1751366532980,27.5,149.2,149.17,4.5362847]
[1751366533183,27.5,149.2,149.15,0.2]
[1751366533396,32.0362847,149.2,149.15,0.2]
[1751366533630,32.0362847,149.2,149.16,4.5362847]
[1751366534299,32.0362847,149.2,149.15,4.7362847]
[1751366534604,32.0362847,149.2,149.16,4.5362847]
[1751366535516,6.70286212,149.19,149.16,4.5362847]
[1751366536604,11.23914682,149.19,149.15,4.7362847]
[1751366536991,6.70286212,149.19,149.16,4.5362847]
[1751366537210,6.70286212,149.19,149.15,0.2]
[1751366537514,6.70286212,149.19,149.16,4.5362847]
[1751366538713,6.70286212,149.19,149.15,0.2]
[1751366538912,6.70286212,149.19,149.16,4.5362847]
[1751366540995,4.5362847,149.18,149.15,0.2]
[1751366542503,11.23914682,149.19,149.15,4.7362847]
[1751366543110,6.70286212,149.19,149.16,4.5362847]
[1751366543315,6.70286212,149.19,149.15,0.2]
[1751366543616,7.16,149.2,149.18,4.5362847]
[1751366543805,7.16,149.2,149.15,0.2]
[1751366543806,7.16,149.2,149.19,4.5362847]
[1751366544788,27.6,149.24,149.19,4.5362847]
[1751366544990,26.0,149.23,149.22,4.5362847]
[1751366545926,6.80072825,149.24,149.22,4.5362847]
[1751366546098,6.80072825,149.24,149.23,4.5362847]
[1751366547106,0.1,149.24,149.23,4.5362847]
[1751366550321,6.80081133,149.24,149.23,4.5362847]
[1751366550923,0.1,149.24,149.23,4.5362847]
[1751366554910,6.80061645,149.24,149.23,4.5362847]
[1751366555327,0.1,149.24,149.23,4.5362847]
[1751366567131,0.1,149.24,149.23,27.72221826]
[1751366568921,0.1,149.24,149.21,6.6813]
[1751366569243,0.1,149.24,149.23,4.5362847]
[1751366575142,6.80061645,149.24,149.22,4.5362847]
[1751366575532,6.80061645,149.24,149.21,0.2]
[1751366578729,11.33690115,149.24,149.21,0.2]
[1751366583453,0.1,149.24,149.23,4.5362847]
[1751366583661,0.1,149.24,149.21,0.2]
[1751366584165,0.1,149.24,149.23,4.5362847]
[1751366595551,0.1,149.24,149.23,23.18593356]
[1751366595756,0.1,149.24,149.23,27.72221826]
[1751366598361,0.1,149.24,149.23,23.18593356]
[1751366609761,0.1,149.24,149.23,21.55032905]
[1751366610986,0.1,149.24,149.23,2.90068019]
[1751366612078,0.1,149.24,149.21,0.2]
[1751366612263,0.1,149.24,149.23,2.90068019]
[1751366613789,0.1,149.24,149.23,4.53366771]
[1751366617302,0.1,149.24,149.23,9.06733542]
[1751366618179,0.1,149.24,149.23,4.53366771]
[1751366618573,0.1,149.24,149.23,9.06733542]
[1751366619286,0.1,149.24,149.23,4.53366771]
[1751366624992,0.1,149.24,149.22,4.53366771]
[1751366625490,0.1,149.24,149.21,4.73366771]
[1751366625887,0.1,149.24,149.22,4.53366771]
[1751366626696,6.80086332,149.24,149.21,0.2]
[1751366627004,4.63366771,149.24,149.21,0.2]
[1751366627303,0.1,149.24,149.21,4.73366771]
[1751366630878,6.80068152,149.24,149.21,0.2]
[1751366631078,11.33434923,149.24,149.21,0.2]
[1751366631291,4.53366771,149.23,149.21,0.2]
[1751366632094,6.70151454,149.22,149.21,0.2]
[1751366633594,0.1,149.24,149.21,4.73366771]
[1751366633798,0.1,149.24,149.22,4.53366771]
[1751366636378,6.80068136,149.24,149.22,4.53366771]
[1751366640219,6.80068136,149.24,149.21,0.2]
[1751366640506,6.80068136,149.24,149.22,4.53366771]
[1751366643512,6.80068136,149.24,149.21,0.2]
[1751366643678,6.80068136,149.24,149.21,4.73366771]
[1751366649413,6.80068136,149.24,149.22,4.53366771]
[1751366650012,6.80068136,149.24,149.22,2.90255892]
[1751366650600,0.1,149.24,149.22,2.90255892]
[1751366653499,6.80069788,149.24,149.22,2.90255892]
[1751366653887,0.1,149.24,149.22,2.90255892]
[1751366654705,0.1,149.24,149.21,0.2]
[1751366654894,0.1,149.24,149.22,2.90255892]
[1751366656785,0.1,149.24,149.21,0.2]
[1751366656786,6.80063143,149.24,149.21,0.2]
[1751366657107,6.80063143,149.24,149.21,3.10255892]
[1751366658209,6.80063143,149.24,149.22,2.90255892]
[1751366658802,6.80063143,149.24,149.21,0.2]
[1751366659201,6.80063143,149.24,149.22,2.90255892]
[1751366659810,6.80063143,149.24,149.21,0.2]
[1751366660019,6.80063143,149.24,149.21,3.10255892]
[1751366661916,2.90255892,149.23,149.21,0.2]
[1751366663305,6.70151454,149.22,149.21,0.2]
[1751366664918,6.80075794,149.24,149.21,3.10255892]
[1751366665125,0.1,149.24,149.23,2.90255892]
[1751366674728,0.1,149.24,149.21,0.2]
[1751366674905,0.1,149.24,149.23,2.90255892]
[1751366679616,0.1,149.24,149.21,0.2]
[1751366679837,0.1,149.24,149.23,2.90255892]
[1751366685437,0.1,149.24,149.21,0.2]
[1751366685646,0.1,149.24,149.23,2.90255892]
[1751366693648,0.1,149.24,149.21,0.2]
[1751366693847,0.1,149.24,149.23,2.90255892]
[1751366705856,0.1,149.24,149.21,0.2]
[1751366706157,0.1,149.24,149.23,2.90255892]
[1751366706657,0.1,149.24,149.21,0.2]
[1751366706860,0.1,149.24,149.23,2.90255892]
[1751366709260,6.80064712,149.24,149.22,2.90255892]
[1751366709763,0.1,149.24,149.22,2.90255892]
[1751366710058,0.1,149.24,149.21,0.2]
[1751366710059,0.1,149.24,149.23,2.90255892]
[1751366710558,6.80066249,149.24,149.21,0.2]
[1751366710753,6.80066249,149.24,149.21,3.10255892]
[1751366711062,9.70322141,149.24,149.21,0.2]
[1751366711270,26.0,149.22,149.21,0.2]
[1751366712853,62.96407346,149.22,149.21,0.2]
[1751366720980,60.06151454,149.22,149.21,0.2]
[1751366728874,62.96407346,149.22,149.21,0.2]
[1751366729462,60.06151454,149.22,149.21,0.2]
[1751366730274,62.96407346,149.22,149.21,0.2]
[1751366730486,63.10623503,149.22,149.21,0.2]
[1751366734568,60.20367611,149.22,149.21,0.2]
[1751366734767,63.10623503,149.22,149.21,0.2]
[1751366738168,60.06151454,149.22,149.21,0.2]
[1751366746575,63.10623503,149.22,149.21,0.2]
[1751366746776,81.75588389,149.22,149.21,0.2]
[1751366756902,91.75588389,149.22,149.21,0.2]
[1751366757795,6.84592237,149.17,149.16,0.2]
[1751366758098,63.08848129,149.17,149.16,0.2]
[1751366758503,81.73813015,149.17,149.16,0.2]
[1751366761805,55.73813015,149.17,149.16,0.2]
[1751366764804,60.18592237,149.17,149.16,0.2]
[1751366765319,63.08848129,149.17,149.16,0.2]
[1751366765811,81.73813015,149.17,149.16,0.2]
[1751366766012,55.73813015,149.17,149.16,0.2]
[1751366771231,145.8,149.12,149.11,0.2]
[1751366771404,27.34,149.12,149.11,0.2]
[1751366773328,34.04600858,149.12,149.11,0.2]
[1751366778741,36.9485675,149.12,149.11,0.2]
[1751366778944,34.04600858,149.12,149.11,0.2]
[1751366779148,36.9485675,149.12,149.11,0.2]
[1751366779337,55.74037793,149.12,149.11,0.2]
[1751366781369,52.83781901,149.12,149.11,0.2]
[1751366781576,55.74037793,149.12,149.11,0.2]
[1751366790906,75.89037793,149.12,149.11,0.2]
[1751366791204,55.74037793,149.12,149.11,0.2]
[1751366794815,145.6,149.07,149.06,6.6657]
[1751366795118,27.34,149.08,149.06,6.6657]
[1751366796199,6.70825786,149.07,149.06,6.6657]
[1751366805031,6.70704581,149.1,149.06,9.56825892]
[1751366805343,34.04704581,149.1,149.06,6.6657]
[1751366805512,36.94960473,149.1,149.06,9.56825892]
[1751366806134,9.60960473,149.1,149.06,9.56825892]
[1751366806318,34.04704581,149.1,149.06,9.56825892]
[1751366806522,36.94960473,149.1,149.06,9.56825892]
[1751366808710,36.92960473,149.1,149.06,9.56825892]
[1751366811038,34.02704581,149.1,149.07,2.90255892]
[1751366811411,34.02704581,149.1,149.06,6.6657]
[1751366811606,34.02704581,149.1,149.07,2.90255892]
[1751366813123,152.90755593,149.09,149.07,2.90255892]
[1751366814835,152.90755593,149.09,149.06,9.56825892]
[1751366816032,152.90755593,149.09,149.07,2.90255892]
[1751366816233,152.90755593,149.09,149.06,9.56825892]
[1751366817527,146.2,149.08,149.06,9.56825892]
[1751366817929,152.90788677,149.08,149.06,9.56825892]
[1751366818227,146.2,149.07,149.06,6.6657]
[1751366818417,6.70788677,149.08,149.06,6.6657]
[1751366820637,2.90255892,149.09,149.06,6.6657]
[1751366820848,9.61013546,149.09,149.06,6.6657]
[1751366821241,6.70757654,149.09,149.06,9.56825892]
[1751366822047,9.61013546,149.09,149.06,6.6657]
[1751366824447,6.70757654,149.09,149.06,9.56825892]
[1751366824652,9.60966205,149.1,149.06,9.56825892]
[1751366825928,9.60966205,149.1,149.06,6.6657]
[1751366826144,9.60966205,149.1,149.06,9.56825892]
[1751366826865,6.70647659,149.11,149.07,2.90255892]
[1751366827066,9.60903551,149.11,149.07,2.90255892]
[1751366828863,2.90255892,149.09,149.06,6.6657]
[1751366829246,6.70647659,149.11,149.06,6.6657]
[1751366829566,2.90255892,149.09,149.06,6.6657]
[1751366830069,6.70780788,149.08,149.06,6.6657]
[1751366832169,152.90780788,149.08,149.06,6.6657]
[1751366834264,146.2,149.07,149.06,6.6657]
[1751366834565,6.70780788,149.08,149.06,6.6657]
[1751366835154,9.6103668,149.08,149.06,6.6657]
[1751366836152,9.6103668,149.08,149.05,0.2]
[1751366839152,146.2,149.06,149.05,0.2]
[1751366841880,152.9087079,149.06,149.05,0.2]
[1751366842364,155.81126682,149.06,149.05,0.2]
[1751366842958,152.9087079,149.06,149.05,0.2]
[1751366844182,6.7087079,149.06,149.05,0.2]
[1751366846078,9.61126682,149.06,149.05,0.2]
[1751366848066,9.61114375,149.07,149.05,0.2]
[1751366850475,2.90255892,149.07,149.05,0.2]
[1751366851786,9.61126682,149.06,149.05,0.2]
[1751366852983,6.7087079,149.06,149.05,0.2]
[1751366853185,9.61126682,149.06,149.05,0.2]
[1751366853401,2.90255892,149.06,149.05,0.2]
[1751366853567,9.61097985,149.07,149.05,0.2]
[1751366854691,2.90255892,149.06,149.05,0.2]
[1751366857082,9.61126682,149.06,149.05,0.2]
[1751366869396,9.75342839,149.06,149.05,0.2]
[1751366869595,9.75342839,149.06,149.04,0.2]
[1751366869596,18.64964886,149.05,149.04,0.2]
[1751366869806,172.0,149.04,148.96,11.05455892]
[1751366870002,2.90255892,149.0,148.96,11.05455892]
[1751366870202,146.0,148.99,148.96,11.05455892]
[1751366872524,146.0,148.99,148.97,2.90255892]
[1751366882438,146.0,148.99,148.98,2.90255892]
[1751366882651,146.0,149.04,148.99,18.64964886]
[1751366882940,146.0,149.04,148.98,47.55220778]
[1751366882941,146.0,149.04,149.02,2.90255892]
[1751366884722,146.0,149.04,148.99,18.64964886]
[1751366884929,146.0,149.04,149.01,2.90255892]
[1751366887337,146.0,149.04,149.02,2.90255892]
[1751366895955,146.0,149.04,149.01,2.90255892]
[1751366897946,146.0,149.04,149.02,2.90255892]
[1751366901557,146.0,149.04,148.99,18.64964886]
[1751366901760,146.0,149.04,149.02,2.90255892]
[1751366901962,146.0,149.04,148.99,18.64964886]
[1751366902168,146.0,149.04,149.02,2.90255892]
[1751366903389,146.0,149.04,148.99,18.64964886]
[1751366903591,146.0,149.04,149.02,2.90255892]
[1751366903882,146.0,149.04,148.97,44.79181043]
[1751366904087,146.0,149.04,149.02,2.90255892]
[1751366905177,146.0,149.04,148.97,44.79181043]
[1751366905392,146.0,149.04,149.01,2.90255892]
[1751366905883,146.0,149.04,148.97,44.79181043]
[1751366906193,155.61221972,149.04,148.97,44.79181043]
[1751366906372,155.61221972,149.04,149.0,2.90255892]
[1751366906683,2.90255892,149.02,148.98,2.90255892]
[1751366907093,2.90255892,149.02,148.96,8.152]
[1751366907267,2.90255892,149.02,148.98,2.90255892]
[1751366907574,148.90255892,149.01,148.97,2.90255892]
[1751366907952,155.61356738,149.01,148.97,2.90255892]
[1751366909065,148.90255892,149.01,148.97,2.90255892]
[1751366909271,146.0,149.01,148.98,2.90255892]
[1751366909681,146.0,149.01,148.96,1.6471]
[1751366909861,148.90255892,149.01,148.97,2.90255892]
[1751366910776,146.0,149.01,148.97,2.90255892]
[1751366911859,146.0,149.01,148.98,2.90255892]
[1751366912879,146.0,149.01,148.99,2.90255892]
[1751366913061,146.0,149.01,149.0,2.90255892]
[1751366913669,146.0,149.01,148.96,13.25733568]
[1751366913883,146.0,149.01,148.99,2.90255892]
[1751366914069,146.0,149.01,148.96,13.25733568]
[1751366914270,146.0,149.01,149.0,2.90255892]
[1751366914577,146.0,149.01,148.97,18.64964886]
[1751366914784,146.0,149.01,149.0,2.90255892]
[1751366915372,146.0,149.01,148.99,2.90255892]
[1751366915974,146.0,149.01,148.96,1.6471]
[1751366916288,146.0,149.01,148.98,2.90255892]
[1751366919287,146.0,149.01,148.96,1.6471]
[1751366919482,146.0,149.01,148.99,2.90255892]
[1751366921291,146.0,149.01,148.98,2.90255892]
[1751366927396,146.0,149.01,148.96,1.6471]
[1751366927692,146.0,149.01,148.98,2.90255892]
[1751366929782,146.0,149.01,148.96,1.6471]
[1751366929983,146.0,149.01,148.98,2.90255892]
[1751366936703,152.71097762,149.01,148.95,26.0]
[1751366936923,155.61353654,149.01,148.96,2.90255892]
[1751366937423,146.0,149.01,149.0,2.90255892]
[1751366939195,146.0,149.01,148.97,18.64964886]
[1751366939415,146.0,149.01,149.0,2.90255892]
[1751366939801,146.0,149.01,148.97,18.64964886]
[1751366940113,146.0,149.01,148.99,2.90255892]
[1751366942211,146.0,149.01,149.0,2.90255892]
[1751366942410,183.26263583,149.05,149.0,2.90255892]
[1751366942604,148.90255892,149.04,149.0,2.90255892]
[1751366943316,2.90255892,149.02,148.98,2.90255892]
[1751366943618,2.90255892,149.01,148.97,2.90255892]
[1751366944892,6.71080607,149.02,148.97,2.90255892]
[1751366944893,9.61336499,149.02,148.97,2.90255892]
[1751366946014,9.61336499,149.02,148.96,18.64964886]
[1751366946199,152.71097716,149.01,148.97,2.90255892]
[1751366947703,152.71097716,149.01,148.95,26.0]
[1751366947904,152.71097716,149.01,148.97,2.90255892]
[1751366951830,155.61353608,149.01,148.97,2.90255892]
[1751366958238,155.61353608,149.01,148.95,2.90255892]
[1751366958239,2.90255892,148.99,148.95,2.90255892]
[1751366958435,148.90255892,148.98,148.93,33.214578]
[1751366958651,146.0,148.97,148.93,2.90255892]
[1751366959216,146.0,148.97,148.94,2.90255892]
[1751366961239,146.0,148.97,148.95,2.90255892]
[1751366961426,146.0,148.97,148.92,26.80604886]
[1751366961642,146.0,148.97,148.94,2.90255892]
[1751366964432,146.0,148.97,148.92,26.80604886]
[1751366964658,146.0,148.97,148.94,2.90255892]
[1751366968269,148.90255892,148.97,148.92,26.80604886]
[1751366968488,6.71283846,148.97,148.92,18.64964886]
[1751366968760,6.71240849,148.98,148.93,2.90255892]
[1751366968928,27.24,148.99,148.94,28.90255892]
[1751366969133,2.90255892,148.99,148.95,28.90255892]
[1751366969346,6.71147587,149.0,148.96,2.90255892]
[1751366969347,2.90255892,149.0,148.96,2.90255892]
[1751366969532,146.0,149.03,148.99,26.0]
[1751366969533,2.90255892,149.03,148.99,26.0]
[1751366969733,4.47815892,149.05,148.99,26.0]
[1751366969936,11.1874464,149.05,148.99,26.0]
[1751366970262,2.90255892,149.04,149.0,2.90255892]
[1751366970437,4.47815892,149.05,149.01,2.90255892]
[1751366971144,8.28481379,149.05,149.01,26.0]
[1751366971349,2.90255892,149.04,149.01,26.0]
[1751366971954,1.5756,149.05,149.01,28.90255892]
[1751366972164,4.47815892,149.05,149.01,26.0]
[1751366972456,4.47815892,149.05,149.01,28.90255892]
[1751366973752,1.5756,149.05,149.02,2.90255892]
[1751366974062,1.5756,149.05,149.01,28.90255892]
[1751366974268,4.47815892,149.05,149.01,28.90255892]
[1751366974659,1.5756,149.05,149.01,28.90255892]
[1751366974960,4.47815892,149.05,149.01,26.0]
[1751366975140,4.47815892,149.05,149.01,2.90255892]
[1751366975645,11.18741464,149.05,149.01,2.90255892]
[1751366976955,9.61181464,149.05,149.01,2.90255892]
[1751366977156,152.70878253,149.06,149.01,2.90255892]
[1751366977551,2.90255892,149.05,149.01,2.90255892]
[1751366978078,152.70878253,149.06,149.04,2.90255892]
[1751366980250,152.70878253,149.06,149.05,2.90255892]
[1751366981701,146.0,149.06,149.05,2.90255892]
[1751366982071,146.0,149.06,149.03,37.61023568]
[1751366982273,146.0,149.06,149.05,2.90255892]
[1751366984884,152.7087079,149.06,149.05,2.90255892]
[1751366987089,152.7087079,149.06,149.04,2.90255892]
[1751366988068,173.24,149.05,149.0,26.0]
[1751366988403,146.0,149.04,149.02,2.90255892]
[1751366988976,146.0,149.04,149.01,2.90255892]
[1751366989176,27.24,149.03,149.01,2.90255892]
[1751366989687,27.24,149.03,149.02,2.90255892]
[1751366990090,179.95001708,149.04,149.0,26.0]
[1751366990270,179.95001708,149.04,149.01,2.90255892]
[1751366993502,179.95001708,149.04,149.0,26.0]
[1751366993676,179.95001708,149.04,149.01,2.90255892]
[1751366994981,152.71024708,149.03,149.01,2.90255892]
[1751366997208,152.71024708,149.03,149.0,26.0]
[1751366997392,152.71024708,149.03,149.01,2.90255892]
[1751366997584,152.71024708,149.03,149.0,28.90255892]